bitfinex-derivatives/quotes_BTCF0:USTF0_20250402
["timestamp","ask_amount","ask_price","bid_price","bid_amount"]
[1743606308505,0.33943437,86099.0,86096.0,0.27218]
[1743606308809,0.00104001,86099.0,86096.0,0.57298]
[1743606309007,0.105,86100.0,86097.0,0.1062]
[1743606309209,0.105,86100.0,86097.0,0.1168]
[1743606309210,0.1297166,86098.0,86097.0,0.1168]
[1743606309414,0.00108,86098.0,86097.0,0.1168]
[1743606309608,0.00104001,86098.0,86097.0,0.1168]
[1743606309921,0.12271906,86098.0,86097.0,0.1168]
[1743606310108,0.00108,86098.0,86097.0,0.1168]
[1743606310309,0.105,86100.0,86097.0,0.1168]
[1743606314011,0.105,86100.0,86097.0,0.4568]
[1743606314318,0.105,86100.0,86097.0,0.3468]
[1743606315812,0.13462024,86099.0,86097.0,0.3468]
[1743606316006,0.23832024,86099.0,86097.0,0.3468]
[1743606316211,0.60016025,86099.0,86087.0,0.00017431]
[1743606316505,0.1044,86098.0,86088.0,0.3608]
[1743606316706,0.00120001,86098.0,86088.0,0.5719]
[1743606317016,0.12710589,86097.0,86088.0,0.5719]
[1743606317216,0.1037,86096.0,86088.0,0.5719]
[1743606317417,0.10490001,86096.0,86088.0,0.5719]
[1743606317717,0.12221165,86095.0,86088.0,0.5719]
[1743606317909,0.12345166,86095.0,86088.0,0.5719]
[1743606318313,0.1001,86094.0,86088.0,0.5719]
[1743606318511,0.10130001,86094.0,86088.0,0.5719]
[1743606318816,0.13424832,86093.0,86088.0,0.1106]
[1743606319009,0.13544833,86093.0,86088.0,0.11]
[1743606319222,0.13544833,86093.0,86089.0,0.3608]
[1743606319418,0.00120001,86093.0,86089.0,0.4814]
[1743606319613,0.105,86100.0,86090.0,0.207]
[1743606319813,0.26183673,86100.0,86090.0,0.2176]
[1743606320015,0.12899174,86099.0,86090.0,0.2176]
[1743606320317,0.13023175,86099.0,86091.0,0.1099]
[1743606320528,0.13023175,86099.0,86096.0,0.3608]
[1743606320723,0.13023175,86099.0,86097.0,0.2139]
[1743606320924,0.13023175,86099.0,86097.0,0.21454]
[1743606321616,0.23623175,86099.0,86097.0,0.21454]
[1743606321812,0.23623175,86099.0,86097.0,0.00064]
[1743606322014,0.23623175,86099.0,86087.0,0.00017431]
[1743606322015,0.23623175,86099.0,86091.0,0.1051]
[1743606322316,0.1025,86098.0,86091.0,0.1157]
[1743606322517,0.00120001,86098.0,86092.0,0.4696]
[1743606322723,0.13172968,86097.0,86092.0,0.48024]
[1743606322911,0.13292969,86097.0,86093.0,0.1051]
[1743606323112,0.23892969,86097.0,86093.0,0.10578]
[1743606323312,0.10720001,86097.0,86094.0,0.1088]
[1743606323619,0.13305593,86096.0,86094.0,0.1094]
[1743606323815,0.13425594,86096.0,86095.0,0.1051]
[1743606324010,0.13425594,86096.0,86095.0,0.10578]
[1743606324411,0.13425594,86096.0,86095.0,0.00068]
[1743606324622,0.13425594,86096.0,86087.0,0.00017431]
[1743606324623,0.24315594,86096.0,86088.0,0.1051]
[1743606324815,0.1071,86095.0,86088.0,0.1157]
[1743606325015,0.10838,86095.0,86088.0,0.1157]
[1743606325215,0.23872171,86094.0,86088.0,0.1157]
[1743606325414,0.23992172,86094.0,86088.0,0.1157]
[1743606325721,0.1071,86093.0,86088.0,0.1157]
[1743606325918,0.10834001,86093.0,86088.0,0.1157]
[1743606326125,0.3608,86089.0,86076.0,0.3608]
[1743606326317,0.30616,86088.0,86078.0,0.2067]
[1743606326519,0.43901814,86088.0,86078.0,0.2167]
[1743606326719,0.44041815,86088.0,86078.0,0.2181]
[1743606327313,0.44041815,86088.0,86078.0,0.01]
[1743606327610,0.43041815,86088.0,86074.0,0.00017431]
[1743606327918,0.3608,86081.0,86074.0,0.00017431]
[1743606328228,0.2158,86080.0,86074.0,0.00017431]
[1743606328412,0.38131205,86080.0,86074.0,0.00017431]
[1743606328813,0.08992,86079.0,86074.0,0.00017431]
[1743606329120,0.00140001,86079.0,86074.0,0.00017431]
[1743606329315,0.13014786,86078.0,86074.0,0.00077431]
[1743606329521,0.13154787,86078.0,86074.0,0.01077431]
[1743606329720,0.13154787,86078.0,86074.0,0.11597431]
[1743606329916,0.00140001,86078.0,86075.0,0.2311]
[1743606330123,0.13054477,86077.0,86075.0,0.2411]
[1743606330928,0.12717628,86078.0,86075.0,0.2411]
[1743606331113,0.1231,86080.0,86075.0,0.2411]
[1743606331310,0.10405977,86081.0,86075.0,0.2411]
[1743606331523,0.12346537,86078.0,86075.0,0.2411]
[1743606331720,0.12346537,86080.0,86075.0,0.2411]
[1743606331927,0.10405977,86081.0,86075.0,0.2411]
[1743606332120,0.12346537,86077.0,86075.0,0.2411]
[1743606332318,0.24656537,86080.0,86075.0,0.2411]
[1743606332521,0.1231,86080.0,86075.0,0.2411]
[1743606332825,0.12224015,86076.0,86075.0,0.2411]
[1743606333027,0.22364015,86079.0,86075.0,0.2411]
[1743606333222,0.34914015,86076.0,86075.0,0.2411]
[1743606333524,0.24774015,86076.0,86075.0,0.2311]
[1743606333823,0.1255,86076.0,86075.0,0.2311]
[1743606334023,0.13082965,86076.0,86075.0,0.2311]
[1743606334409,0.25433716,86080.0,86075.0,0.2311]
[1743606334819,0.1255,86080.0,86075.0,0.2311]
[1743606335026,0.12883716,86079.0,86075.0,0.2317]
[1743606335324,0.13031716,86079.0,86075.0,0.2317]
[1743606335539,0.2413,86078.0,86075.0,0.2317]
[1743606335728,0.00140001,86078.0,86075.0,0.2317]
[1743606336030,0.13028656,86077.0,86075.0,0.2417]
[1743606336217,0.13176656,86077.0,86075.0,0.2417]
[1743606336723,0.00148,86077.0,86075.0,0.2417]
[1743606336918,0.12187825,86076.0,86075.0,0.2417]
[1743606337115,0.10405977,86083.0,86075.0,0.2417]
[1743606337320,0.10405977,86083.0,86081.0,0.3608]
[1743606337515,0.10405977,86083.0,86082.0,0.2383]
[1743606337711,0.10405977,86083.0,86075.0,0.0006]
[1743606337712,0.24996419,86082.0,86075.0,0.0006]
[1743606338023,0.2413,86082.0,86075.0,0.0106]
[1743606338216,0.2413,86082.0,86076.0,0.1208]
[1743606338412,0.13086419,86081.0,86077.0,0.1175]
[1743606338618,0.23492396,86081.0,86077.0,0.1175]
[1743606338824,0.249,86080.0,86078.0,0.1261]
[1743606339224,0.249,86080.0,86079.0,0.1283]
[1743606339622,0.37382405,86080.0,86079.0,0.1283]
[1743606341524,0.24922405,86080.0,86079.0,0.1283]
[1743606341726,0.12482405,86080.0,86079.0,0.1283]
[1743606342134,0.12482405,86080.0,86079.0,0.2539]
[1743606342527,0.24392405,86080.0,86079.0,0.2539]
[1743606342930,0.12482405,86080.0,86079.0,0.2539]
[1743606343124,0.12630405,86080.0,86079.0,0.25458]
[1743606343832,0.24540405,86080.0,86079.0,0.25458]
[1743606344033,0.12630405,86080.0,86079.0,0.25458]
[1743606344432,0.12630405,86080.0,86079.0,0.26458]
[1743606344641,0.12630405,86080.0,86079.0,0.39218]
[1743606346225,0.00148,86080.0,86079.0,0.39218]
[1743606346426,0.10405977,86081.0,86079.0,0.39218]
[1743606347737,0.13886553,86088.0,86079.0,0.39218]
[1743606347926,0.13886553,86088.0,86087.0,0.3608]
[1743606348130,0.14026554,86088.0,86087.0,0.5408]
[1743606348332,0.105,86100.0,86087.0,0.5408]
[1743606348536,0.105,86100.0,86095.0,0.3608]
[1743606348733,0.105,86100.0,86095.0,0.5008]
[1743606349136,0.3001088,86096.0,86095.0,0.5008]
[1743606349736,0.3001088,86096.0,86095.0,0.14]
[1743606350049,0.12652689,86096.0,86095.0,0.14]
[1743606350339,0.1279269,86096.0,86095.0,0.0006]
[1743606350556,0.00140001,86096.0,86088.0,0.1177]
[1743606350737,0.2351,86095.0,86088.0,0.12834]
[1743606350932,0.11900001,86095.0,86088.0,0.12894]
[1743606351236,0.12531231,86094.0,86088.0,0.1283]
[1743606351431,0.12675231,86094.0,86088.0,0.1283]
[1743606351637,0.2351,86093.0,86088.0,0.1283]
[1743606351846,0.23650001,86093.0,86089.0,0.1237]
[1743606352141,0.12763451,86092.0,86089.0,0.1343]
[1743606352342,0.12903452,86092.0,86090.0,0.1271]
[1743606352540,0.1176,86091.0,86090.0,0.13778]
[1743606352742,0.11908,86091.0,86090.0,0.13778]
[1743606353042,0.24257247,86091.0,86090.0,0.13778]
[1743606353834,0.24257247,86091.0,86090.0,0.12778]
[1743606354432,0.12497247,86091.0,86090.0,0.48858]
[1743606354640,0.00148,86091.0,86090.0,0.49858]
[1743606354840,0.00017431,86099.0,86090.0,0.49858]
[1743606354841,0.12747431,86099.0,86090.0,0.49858]
[1743606355045,0.00157432,86099.0,86098.0,0.3608]
[1743606355237,0.00157432,86099.0,86098.0,0.4914]
[1743606355436,0.12167411,86099.0,86098.0,0.4914]
[1743606355745,0.12307412,86099.0,86098.0,0.4914]
[1743606359048,0.23977412,86099.0,86098.0,0.01609118]
[1743606359241,0.23977412,86099.0,86098.0,0.01549118]
[1743606359444,0.12307412,86099.0,86098.0,0.01549118]
[1743606359647,0.12307412,86099.0,86098.0,0.02609118]
[1743606359952,0.12307412,86099.0,86098.0,0.29315483]
[1743606360342,0.12307412,86099.0,86098.0,0.30828557]
[1743606360545,0.12307412,86099.0,86098.0,0.3088436]
[1743606360844,0.12307412,86099.0,86098.0,0.15827415]
[1743606361353,0.12307412,86099.0,86098.0,0.14314341]
[1743606362947,0.25377412,86099.0,86098.0,0.14314341]
[1743606363737,0.25377412,86099.0,86098.0,0.0006]
[1743606363938,0.50837412,86099.0,86091.0,0.1237]
[1743606364450,0.39087412,86099.0,86091.0,0.1237]
[1743606364751,0.39087412,86099.0,86092.0,0.01514841]
[1743606364950,0.39087412,86099.0,86093.0,0.01514841]
[1743606365250,0.39087412,86099.0,86091.0,0.1237]
[1743606365450,0.1175,86098.0,86092.0,0.01523352]
[1743606365743,0.1175,86098.0,86093.0,0.01523352]
[1743606365744,0.11906001,86098.0,86093.0,0.01523352]
[1743606365952,0.25252325,86097.0,86094.0,0.01523352]
[1743606366150,0.25408326,86097.0,86095.0,0.01523352]
[1743606366450,0.25408326,86097.0,86096.0,0.14743352]
[1743606366655,0.25408326,86097.0,86096.0,0.15743352]
[1743606366834,0.12338326,86097.0,86096.0,0.51823352]
[1743606367143,0.00156001,86097.0,86096.0,0.51823352]
[1743606367447,0.12710023,86097.0,86096.0,0.51823352]
[1743606367654,0.00156001,86097.0,86096.0,0.51823352]
[1743606367846,0.00017431,86099.0,86096.0,0.51823352]
[1743606368047,0.00017431,86099.0,86097.0,0.01523352]
[1743606368345,0.00017431,86099.0,86098.0,0.01523352]
[1743606368550,0.00017431,86099.0,86098.0,0.39743352]
[1743606369845,0.25273667,86099.0,86098.0,0.26523352]
[1743606370047,0.49809668,86099.0,86098.0,0.26523352]
[1743606370273,0.49809668,86099.0,86098.0,0.25]
[1743606370452,0.37729668,86099.0,86098.0,0.265157]
[1743606371538,0.25429668,86099.0,86098.0,0.265157]
[1743606371743,0.25429668,86099.0,86098.0,0.521857]
[1743606372152,0.61509668,86099.0,86098.0,0.396557]
[1743606372347,0.75549668,86099.0,86098.0,0.25]
[1743606372757,0.48585668,86099.0,86098.0,0.26523478]
[1743606372946,0.48585668,86099.0,86098.0,0.25]
[1743606373857,0.48585668,86099.0,86098.0,0.01]
[1743606374151,0.48585668,86099.0,86098.0,0.02522372]
[1743606374459,0.39469668,86099.0,86098.0,0.02522372]
[1743606374949,0.37469668,86099.0,86098.0,0.01]
[1743606375555,0.38469668,86099.0,86098.0,0.01]
[1743606377055,0.38469668,86099.0,86098.0,0.02542013]
[1743606377955,0.38469668,86099.0,86098.0,0.01542013]
[1743606378854,0.26429668,86099.0,86098.0,0.02542013]
[1743606379455,0.13389668,86099.0,86098.0,0.02542013]
[1743606379656,0.01173432,86099.0,86098.0,0.02542013]
[1743606379960,0.00173432,86099.0,86098.0,0.02542013]
[1743606380554,0.25756134,86099.0,86098.0,0.02542013]
[1743606381158,0.25756134,86099.0,86085.0,0.3708]
[1743606381159,0.57142134,86099.0,86085.0,0.3608]
[1743606381352,0.3608,86091.0,86086.0,0.01531089]
[1743606381552,0.3608,86091.0,86076.0,0.3608]
[1743606381553,0.5697,86090.0,86078.0,1e-08]
[1743606381759,0.1931,86087.0,86078.0,1e-08]
[1743606381954,0.1931,86085.0,86078.0,1e-08]
[1743606382161,0.3608,86080.0,86078.0,1e-08]
[1743606382456,0.247,86079.0,86078.0,1e-08]
[1743606382658,0.39053578,86079.0,86078.0,1e-08]
[1743606382859,0.48281578,86079.0,86078.0,0.01516471]
[1743606383064,0.48281578,86079.0,86078.0,0.0151647]
[1743606383563,0.48281578,86079.0,86074.0,0.00017431]
[1743606383961,0.5539,86077.0,86066.0,1e-08]
[1743606384156,0.5539,86067.0,86066.0,1e-08]
[1743606384355,0.58546001,86067.0,86066.0,1e-08]
[1743606384556,0.71692685,86067.0,86066.0,1e-08]
[1743606384958,0.52382685,86067.0,86066.0,1e-08]
[1743606388960,0.52382685,86067.0,86058.0,0.00017431]
[1743606389162,0.3608,86060.0,86058.0,0.00017431]
[1743606389355,0.47806,86059.0,86047.0,0.1309]
[1743606389555,0.63340754,86059.0,86047.0,0.1409]
[1743606390765,0.54144754,86059.0,86047.0,0.1409]
[1743606390961,0.41954754,86059.0,86051.0,0.3608]
[1743606391167,0.28764754,86059.0,86052.0,0.2516]
[1743606391460,0.28764754,86059.0,86052.0,0.38]
[1743606391858,0.26764754,86059.0,86052.0,0.38]
[1743606392258,0.26764754,86059.0,86052.0,0.39]
[1743606393353,0.13534754,86059.0,86058.0,0.3608]
[1743606393558,0.1249,86074.0,86058.0,0.40630604]
[1743606393858,0.25759817,86074.0,86067.0,0.3608]
[1743606394161,0.25759817,86074.0,86068.0,0.2543]
[1743606394369,0.3608,86073.0,86068.0,0.2643]
[1743606394567,0.48364001,86073.0,86068.0,0.1361]
[1743606394762,0.25756697,86072.0,86068.0,0.1361]
[1743606394968,0.26916698,86072.0,86063.0,0.1282]
[1743606395164,0.26916698,86072.0,86065.0,0.3608]
[1743606396967,0.26916698,86072.0,86066.0,0.0149629]
[1743606397158,0.2577,86071.0,86066.0,0.0149629]
[1743606397359,0.62014001,86071.0,86067.0,0.1271]
[1743606397554,0.25768053,86070.0,86068.0,0.0149629]
[1743606397866,0.26924054,86070.0,86068.0,0.0149629]
[1743606398064,0.1293,86069.0,86068.0,0.0149629]
[1743606398265,0.14086001,86069.0,86062.0,0.00017431]
[1743606398568,0.26256811,86069.0,86068.0,0.132]
[1743606399470,0.26256811,86069.0,86063.0,0.1271]
[1743606399767,0.26256811,86069.0,86064.0,0.133]
[1743606400369,0.26256811,86069.0,86062.0,0.00017431]
[1743606400555,0.3608,86063.0,86062.0,0.00017431]
[1743606400762,0.38236001,86063.0,86062.0,0.00017431]
[1743606400960,0.5061994,86063.0,86062.0,0.00017431]
[1743606401167,0.6378994,86063.0,86062.0,0.00017431]
[1743606402168,0.2770994,86063.0,86062.0,0.00017431]
[1743606404465,0.1453994,86063.0,86062.0,0.00017431]
[1743606404974,0.1253994,86063.0,86062.0,0.00017431]
[1743606405164,0.12383939,86063.0,86062.0,0.01017431]
[1743606405467,0.0906,86071.0,86062.0,0.01017431]
[1743606405670,0.12561171,86070.0,86063.0,0.2517]
[1743606405878,0.01156001,86070.0,86063.0,0.2617]
[1743606406068,0.13592617,86070.0,86063.0,0.2617]
[1743606406878,0.3608,86067.0,86063.0,0.2617]
[1743606407171,0.37244001,86067.0,86062.0,0.00017431]
[1743606407370,0.12192086,86066.0,86062.0,0.00017431]
[1743606407671,0.26598087,86066.0,86062.0,0.00017431]
[1743606407975,0.14348087,86066.0,86062.0,0.00017431]
[1743606408678,0.1248,86065.0,86062.0,0.00017431]
[1743606408871,0.13636001,86065.0,86062.0,0.00017431]
[1743606409177,0.13263339,86064.0,86062.0,0.00017431]
[1743606409473,0.1441934,86064.0,86062.0,0.00017431]
[1743606409865,0.1341934,86064.0,86062.0,0.00017431]
[1743606410063,0.1341934,86064.0,86063.0,0.3608]
[1743606410265,0.1341934,86064.0,86063.0,0.99753678]
[1743606410266,1e-08,86064.0,86063.0,0.99753678]
[1743606410465,0.00017431,86075.0,86063.0,0.99753678]
[1743606410466,0.00017431,86075.0,86063.0,1.02753678]
[1743606410781,0.00017431,86075.0,86074.0,0.3608]
[1743606410967,0.00017431,86075.0,86074.0,0.37593678]
[1743606411169,0.12594723,86075.0,86074.0,0.3608]
[1743606411867,0.12594723,86075.0,86074.0,0.4608]
[1743606412263,0.17358191,86077.0,86074.0,0.71940033]
[1743606412476,0.105,86100.0,86076.0,0.3608]
[1743606412669,0.105,86100.0,86097.0,0.3608]
[1743606412968,0.12257447,86099.0,86098.0,0.2536]
[1743606413281,0.12257447,86099.0,86098.0,0.37873902]
[1743606413766,0.12257447,86099.0,86098.0,0.39223407]
[1743606413966,0.00017431,86107.0,86098.0,0.49223407]
[1743606414180,0.24332085,86111.0,86106.0,0.3608]
[1743606414375,0.24332085,86111.0,86109.0,0.3608]
[1743606414675,0.24332085,86111.0,86110.0,0.14724442]
[1743606414866,0.24332085,86111.0,86110.0,0.18724442]
[1743606415067,0.37724202,86111.0,86110.0,0.18784442]
[1743606415562,0.37724202,86111.0,86110.0,0.2979]
[1743606418086,0.37724202,86111.0,86110.0,0.2579]
[1743606418679,0.13392117,86111.0,86110.0,0.2579]
[1743606419876,0.13392117,86111.0,86110.0,0.3579]
[1743606420082,0.13316117,86111.0,86110.0,0.3579]
[1743606420373,0.13316117,86111.0,86110.0,0.0006]
[1743606420580,0.01084,86111.0,86110.0,0.0006]
[1743606420778,0.01084,86111.0,86101.0,0.3608]
[1743606420981,0.1276,86110.0,86101.0,0.4614]
[1743606421279,0.12836,86110.0,86101.0,0.4614]
[1743606421477,0.12881488,86109.0,86108.0,0.3608]
[1743606421679,0.12957488,86109.0,86108.0,0.4614]
[1743606423772,0.4183,86125.0,86108.0,0.4614]
[1743606423971,0.00097396,86119.0,86109.0,0.1248]
[1743606424277,0.13387401,86117.0,86115.0,0.3608]
[1743606424480,0.13387401,86117.0,86116.0,0.2493]
[1743606424481,0.00076,86117.0,86116.0,0.2493]
[1743606424675,0.00017396,86119.0,86116.0,0.24994]
[1743606424977,0.12596062,86117.0,86116.0,0.26994]
[1743606425183,0.12596062,86118.0,86116.0,0.26994]
[1743606425374,0.00076,86118.0,86116.0,0.26994]
[1743606425575,0.00017396,86119.0,86116.0,0.26994]
[1743606425775,0.12596062,86118.0,86116.0,0.26994]
[1743606425976,0.12672062,86118.0,86116.0,0.26994]
[1743606426582,0.00076,86118.0,86116.0,0.43994]
[1743606426780,0.3608,86170.0,86117.0,0.18881646]
[1743606426982,0.3608,86176.0,86153.0,0.3608]
[1743606427183,0.3608,86176.0,86163.0,0.3608]
[1743606427184,0.01401212,86167.0,86163.0,0.3608]
[1743606427385,0.12119719,86169.0,86163.0,0.3708]
[1743606427685,0.26,86175.0,86163.0,0.3808]
[1743606427886,0.1299,86169.0,86163.0,0.3708]
[1743606428186,0.12826604,86168.0,86163.0,0.3708]
[1743606428375,0.1299,86174.0,86163.0,0.3708]
[1743606428581,0.1299,86174.0,86170.0,0.3608]
[1743606428786,0.1299,86174.0,86170.0,0.39940345]
[1743606428984,0.1301,86180.0,86170.0,0.39940345]
[1743606429187,0.20818098,86185.0,86177.0,0.3608]
[1743606429393,0.70876435,86259.0,86184.0,0.3608]
[1743606429394,0.3608,86226.0,86184.0,0.3608]
[1743606429590,0.3608,86235.0,86184.0,0.3608]
[1743606429591,0.3608,86219.0,86206.0,0.3608]
[1743606429884,0.49928441,86219.0,86206.0,0.3708]
[1743606430096,0.1299,86218.0,86206.0,0.3708]
[1743606430274,0.3608,86235.0,86215.0,0.3608]
[1743606430474,0.1299,86224.0,86216.0,0.1307]
[1743606430689,0.1299,86224.0,86216.0,0.1407]
[1743606430889,0.12531317,86223.0,86216.0,0.1407]
[1743606431187,0.25541317,86223.0,86216.0,0.1307]
[1743606431489,0.1299,86222.0,86216.0,0.1307]
[1743606431679,0.1299,86222.0,86207.0,0.1307]
[1743606431878,0.17491218,86220.0,86207.0,0.1407]
[1743606432080,0.26,86219.0,86207.0,0.1407]
[1743606432281,0.38496332,86219.0,86207.0,0.1407]
[1743606432879,0.38568332,86219.0,86207.0,0.14142]
[1743606433495,0.3608,86212.0,86207.0,0.14142]
[1743606433680,0.2467,86211.0,86207.0,0.14142]
[1743606433883,0.36898621,86211.0,86207.0,0.1407]
[1743606435090,0.36898621,86211.0,86207.0,0.13134]
[1743606435295,0.24288621,86211.0,86207.0,0.14134]
[1743606435478,0.12124,86211.0,86207.0,0.75214]
[1743606435682,0.3608,86243.0,86207.0,0.49214]
[1743606435880,0.08261284,86250.0,86242.0,0.3608]
[1743606436087,0.08197284,86250.0,86249.0,0.3608]
[1743606436382,0.08197284,86250.0,86249.0,0.4626]
[1743606436581,0.24092323,86260.0,86249.0,0.4626]
[1743606436582,0.24092323,86260.0,86249.0,0.6126]
[1743606436782,0.3608,86266.0,86256.0,0.3608]
[1743606436985,0.00112001,86265.0,86264.0,0.3608]
[1743606437187,0.2659,86289.0,86264.0,0.45192]
[1743606437389,0.3608,86279.0,86271.0,0.3608]
[1743606437581,0.133,86278.0,86271.0,0.3722]
[1743606437777,0.13448,86278.0,86272.0,0.1245]
[1743606437989,0.13448,86278.0,86272.0,0.1359]
[1743606438192,0.3608,86314.0,86272.0,0.2859]
[1743606438382,0.17491218,86290.0,86281.0,0.3608]
[1743606438579,0.12418814,86287.0,86281.0,0.37264]
[1743606438785,0.3608,86282.0,86281.0,0.00184]
[1743606438995,0.3608,86282.0,86268.0,0.00017386]
[1743606439201,0.17491218,86280.0,86268.0,0.00201386]
[1743606439389,0.2557,86281.0,86268.0,0.00201386]
[1743606439593,0.37799859,86279.0,86269.0,0.1226]
[1743606439790,0.25389859,86279.0,86269.0,0.49524]
[1743606439995,0.1316,86279.0,86269.0,0.49524]
[1743606440294,0.09156,86295.0,86269.0,0.49524]
[1743606440295,0.3608,86293.0,86276.0,0.3608]
[1743606440492,0.2557,86287.0,86277.0,0.1226]
[1743606440688,0.2557,86287.0,86277.0,0.13444]
[1743606440883,0.2557,86287.0,86277.0,0.01184]
[1743606441396,0.12396436,86286.0,86277.0,0.01184]
[1743606441596,0.3608,86285.0,86277.0,0.00184]
[1743606441801,0.3608,86281.0,86269.0,0.3608]
[1743606441997,0.2509,86280.0,86269.0,0.37264]
[1743606442295,0.37837504,86280.0,86269.0,0.37264]
[1743606442486,0.2509,86280.0,86276.0,0.3608]
[1743606442688,0.2509,86280.0,86277.0,0.1254]
[1743606442884,0.2509,86280.0,86277.0,0.00184]
[1743606443085,0.1289573,86279.0,86277.0,0.00184]
[1743606443386,0.3608,86278.0,86277.0,0.00184]
[1743606443592,0.2509,86278.0,86271.0,0.1254]
[1743606443893,0.74276272,86278.0,86271.0,0.12724]
[1743606444088,0.25346272,86278.0,86276.0,0.3608]
[1743606444393,0.25346272,86278.0,86276.0,0.36264]
[1743606444595,0.25346272,86278.0,86277.0,0.1254]
[1743606444789,0.25346272,86278.0,86277.0,0.13732]
[1743606444989,0.04219388,86285.0,86277.0,0.13732]
[1743606445190,0.105,86300.0,86283.0,0.3608]
[1743606445393,0.105,86300.0,86291.0,0.3608]
[1743606445591,0.12976487,86299.0,86291.0,0.37268]
[1743606445793,0.12976487,86299.0,86292.0,0.1314]
[1743606445987,0.12976487,86299.0,86292.0,0.13324]
[1743606446190,0.12976487,86299.0,86292.0,0.00184]
[1743606446389,0.12976487,86299.0,86287.0,0.00017386]
[1743606446390,0.3608,86297.0,86287.0,0.00017386]
[1743606446689,0.11733362,86297.0,86287.0,0.01201386]
[1743606446895,0.12196187,86296.0,86287.0,0.00201386]
[1743606447291,0.12196187,86298.0,86291.0,0.3608]
[1743606447496,0.12196187,86298.0,86291.0,0.36264]
[1743606447794,0.105,86300.0,86291.0,0.36264]
[1743606447999,0.12064823,86297.0,86291.0,0.37264]
[1743606448193,0.12064823,86298.0,86291.0,0.37264]
[1743606448387,0.1283,86296.0,86291.0,0.37264]
[1743606448591,0.1283,86296.0,86295.0,0.3608]
[1743606448792,0.1283,86296.0,86295.0,0.48272]
[1743606449194,0.17491218,86320.0,86295.0,0.48272]
[1743606449392,0.17491218,86320.0,86309.0,0.3608]
[1743606449594,0.0136855,86325.0,86310.0,0.1304]
[1743606449595,0.12148198,86311.0,86310.0,0.1304]
[1743606449798,0.12148198,86312.0,86310.0,0.1304]
[1743606450000,0.12138853,86324.0,86310.0,0.2619]
[1743606450226,0.12138853,86324.0,86317.0,0.3608]
[1743606450503,0.12138853,86318.0,86310.0,0.00188]
[1743606450699,0.3608,86314.0,86303.0,0.1304]
[1743606451005,0.12064591,86313.0,86303.0,0.1504]
[1743606451198,0.12064591,86313.0,86308.0,0.3608]
[1743606451405,0.12064591,86319.0,86309.0,0.1235]
[1743606451704,0.17491218,86320.0,86309.0,0.1335]
[1743606452196,0.24027647,86325.0,86309.0,0.1335]
[1743606452403,0.00882542,86327.0,86309.0,0.1335]
[1743606452404,0.1264,86319.0,86316.0,0.3608]
[1743606452602,0.2492688,86319.0,86317.0,0.1235]
[1743606452802,0.1248,86318.0,86316.0,0.3568]
[1743606453196,0.1264,86317.0,86316.0,0.3568]
[1743606453598,0.37891315,86317.0,86316.0,0.3568]
[1743606454805,0.73971315,86317.0,86308.0,0.3608]
[1743606454996,0.73971315,86317.0,86302.0,0.00017386]
[1743606455401,0.09104,86316.0,86302.0,0.00017386]
[1743606455612,0.09104,86315.0,86302.0,0.00017386]
[1743606455912,0.3608,86310.0,86294.0,0.3608]
[1743606456118,0.3608,86303.0,86294.0,0.00184]
[1743606456303,0.25897062,86309.0,86294.0,0.3608]
[1743606456508,0.12757062,86302.0,86294.0,0.36268]
[1743606456712,0.1314,86301.0,86294.0,0.36268]
[1743606456907,0.1314,86301.0,86295.0,0.1307]
[1743606457113,0.13310184,86300.0,86295.0,0.13262]
[1743606457418,0.13310184,86300.0,86295.0,0.00192]
[1743606457619,0.1328,86299.0,86295.0,0.00192]
[1743606458022,0.25192107,86298.0,86289.0,0.00017386]
[1743606458213,0.3608,86290.0,86289.0,0.00017386]
[1743606458519,0.3608,86292.0,86289.0,0.00017386]
[1743606458720,0.12582107,86290.0,86289.0,0.00201386]
[1743606458920,0.3855859,86291.0,86289.0,0.00201386]
[1743606459120,0.2565,86291.0,86289.0,0.00201386]
[1743606459524,0.1290859,86290.0,86289.0,0.00201386]
[1743606460125,0.3855859,86290.0,86289.0,0.00201386]
[1743606460618,0.2565,86290.0,86289.0,0.00201386]
[1743606460815,0.38522147,86290.0,86289.0,0.00201386]
[1743606461419,0.12872147,86290.0,86289.0,0.00201386]
[1743606462119,0.00017269,86306.0,86289.0,0.11201386]
[1743606462321,0.00017269,86306.0,86305.0,0.3608]
[1743606462513,0.00017269,86306.0,86305.0,0.36264]
[1743606462710,0.12565528,86306.0,86305.0,0.00184]
[1743606463120,0.12565528,86306.0,86296.0,0.3608]
[1743606463323,0.2545,86305.0,86296.0,0.36264]
[1743606463520,0.2545,86305.0,86297.0,0.1209]
[1743606463714,0.13089364,86304.0,86297.0,0.00184]
[1743606463919,0.2545,86303.0,86297.0,0.00184]
[1743606464115,0.2545,86303.0,86297.0,0.12274]
[1743606464321,0.12962033,86302.0,86297.0,0.12274]
[1743606464823,0.12962033,86302.0,86298.0,0.1221]
[1743606465019,0.12962033,86302.0,86298.0,0.12394]
[1743606465219,0.00017269,86306.0,86300.0,0.3608]
[1743606465421,0.00017269,86306.0,86300.0,0.37268]
[1743606466019,0.07007269,86306.0,86300.0,0.37268]
[1743606466222,0.07007269,86306.0,86305.0,0.3608]
[1743606466419,0.07007269,86306.0,86305.0,0.37272]
[1743606467321,0.07007269,86306.0,86305.0,0.61182]
[1743606468016,0.3608,86350.0,86305.0,0.63059669]
[1743606468216,0.1218,86338.0,86335.0,0.3608]
[1743606468527,0.2484,86338.0,86336.0,0.1215]
[1743606468719,0.12763544,86337.0,86336.0,0.12338]
[1743606469333,0.1326,86368.0,86336.0,0.64056]
[1743606469522,0.1326,86368.0,86366.0,0.3608]
[1743606469851,0.25889899,86368.0,86367.0,0.1313]
[1743606470030,0.25889899,86368.0,86367.0,0.08069901]
[1743606470031,0.10653659,86368.0,86367.0,0.08069901]
[1743606470549,0.23548187,86368.0,86367.0,0.08069901]
[1743606471129,0.20941867,86368.0,86367.0,0.12277565]
[1743606471430,0.12894528,86368.0,86367.0,0.12461565]
[1743606471630,0.12894528,86368.0,86367.0,0.12369772]
[1743606471824,4.301e-05,86390.0,86367.0,0.48449772]
[1743606472029,0.13297689,86378.0,86368.0,0.1304555]
[1743606472324,0.1284,86389.0,86368.0,0.1304555]